bitfinex-derivatives/quotes_BNBF0:USTF0_20230831
["timestamp","ask_amount","ask_price","bid_price","bid_amount"]
[1693517399426,0.07522738,215.98,215.75,0.18071512]
[1693517399624,0.07522738,215.99,215.75,0.18071512]
[1693517400630,0.07522738,215.99,215.75,0.25660498]
[1693517400831,0.07522738,215.99,215.76,0.18071512]
[1693517401426,0.07522738,215.98,215.76,0.18071512]
[1693517401934,0.07522738,215.98,215.77,0.18071512]
[1693517402133,0.07522738,215.98,215.75,0.18071512]
[1693517402328,0.07522738,215.98,215.76,0.18069735]
[1693517402532,0.07522738,215.98,215.75,0.25658721]
[1693517402732,0.07522738,215.98,215.76,0.18069735]
[1693517403132,0.07522738,215.98,215.75,0.18069735]
[1693517403333,0.07522738,215.98,215.76,0.18069735]
[1693517403535,0.07522738,215.98,215.75,0.25658721]
[1693517403734,0.07522738,215.98,215.76,0.18069735]
[1693517404537,0.07522738,215.97,215.76,0.18069735]
[1693517407245,0.07522738,215.97,215.76,0.25658721]
[1693517407443,0.07522738,215.97,215.77,0.18069735]
[1693517407638,0.07522738,215.97,215.76,0.25658721]
[1693517407844,0.07522738,215.97,215.77,0.18068042]
[1693517408045,0.07522738,215.97,215.76,0.07588986]
[1693517408240,0.07522738,215.97,215.77,0.18068655]
[1693517408843,0.07522738,215.97,215.75,0.07588986]
[1693517409145,0.07522738,215.97,215.76,0.18069071]
[1693517413145,0.07522738,215.97,215.76,0.25658057]
[1693517413344,0.07522738,215.97,215.77,0.18069071]
[1693517414245,0.07522738,215.97,215.76,0.18069071]
[1693517414447,0.07522738,215.97,215.77,0.18068449]
[1693517415644,0.07522738,215.97,215.76,0.25657435]
[1693517415845,0.07522738,215.97,215.77,0.1806843]
[1693517423948,0.07522738,215.96,215.75,0.07588986]
[1693517424142,0.07522738,215.97,215.76,0.18067648]
[1693517424948,0.07522738,215.97,215.76,0.25656634]
[1693517425149,0.07522738,215.98,215.77,0.18067648]
[1693517425753,0.07522738,215.98,215.77,0.25656634]
[1693517425949,0.07522738,215.98,215.78,0.18067648]
[1693517426350,0.07522738,215.98,215.77,0.18067648]
[1693517426550,0.07522738,215.98,215.78,0.18066496]
[1693517426746,0.07522738,215.98,215.76,0.07588986]
[1693517426951,0.07522738,215.98,215.77,0.18066552]
[1693517430955,0.07522738,215.97,215.77,0.18066552]
[1693517431752,0.07522738,215.98,215.77,0.18066552]
[1693517431951,0.15045476,216.0,215.77,0.18066552]
[1693517431952,0.07522738,215.97,215.77,0.18066552]
[1693517432356,0.07522738,215.98,215.77,0.18066552]
[1693517432553,0.07522738,215.97,215.77,0.18066552]
[1693517432954,0.07522738,215.98,215.77,0.18066552]
[1693517436554,0.07522738,215.97,215.77,0.18066552]
[1693517436851,0.07522738,215.98,215.77,0.18066552]
[1693517437958,0.15045476,216.0,215.77,0.18066552]
[1693517437959,0.07522738,215.97,215.77,0.18066552]
[1693517438159,0.07522738,215.98,215.77,0.18066552]
[1693517438351,0.07522738,215.97,215.77,0.18066552]
[1693517438954,0.07522738,215.98,215.77,0.18066552]
[1693517439260,0.07522738,215.97,215.77,0.18066552]
[1693517442760,0.07522738,215.98,215.77,0.18066552]
[1693517443059,0.07522738,215.97,215.77,0.18066552]
[1693517443355,0.07522738,215.98,215.77,0.18066552]
[1693517444356,0.07522738,215.97,215.77,0.18066552]
[1693517444957,0.07522738,215.98,215.77,0.18066552]
[1693517445157,0.07522738,215.97,215.77,0.18066552]
[1693517445759,0.07522738,215.98,215.77,0.18066552]
[1693517446955,0.07522738,215.97,215.77,0.18066552]
[1693517447260,0.07522738,215.98,215.77,0.18066552]
[1693517447654,0.07522738,215.97,215.77,0.18066552]
[1693517448161,0.07522738,215.98,215.77,0.18066552]
[1693517448461,0.07522738,215.97,215.77,0.18066552]
[1693517449058,0.07522738,215.98,215.77,0.18066552]
[1693517449259,0.07522738,215.97,215.77,0.18066552]
[1693517453364,0.07522738,215.97,215.77,0.25655538]
[1693517453666,0.07522738,215.97,215.78,0.18065931]
[1693517453865,0.07522738,215.97,215.76,0.07588986]
[1693517454165,0.07522738,215.97,215.77,0.18065849]
[1693517455958,1.00303174,216.05,215.77,0.18065849]
[1693517455959,0.07522738,215.98,215.77,0.25654835]
[1693517456261,0.07522738,215.99,215.78,0.18065849]
[1693517457162,0.07522738,215.98,215.78,0.18065849]
[1693517461963,0.07522738,215.99,215.78,0.18065849]
[1693517462170,0.07522738,216.05,215.83,0.07588986]
[1693517462371,0.07522738,216.09,215.84,0.18065849]
[1693517462570,0.07522738,216.09,215.85,0.18065849]
[1693517462769,0.07522738,216.09,215.86,0.18065849]
[1693517463065,0.07522738,216.09,215.81,0.07588986]
[1693517463270,0.07522738,216.09,215.82,0.18036381]
[1693517464072,0.07522738,216.1,215.82,0.18036381]
[1693517464264,0.07522738,216.1,215.83,0.18036381]
[1693517464468,0.07522738,216.1,215.8,0.18036381]
[1693517464668,0.07522738,216.1,215.81,0.18036381]
[1693517464864,0.07522738,216.1,215.8,0.18036381]
[1693517465070,0.07522738,216.11,215.81,0.18036381]
[1693517465270,0.07522738,216.11,215.79,0.18036381]
[1693517465470,0.07522738,216.11,215.8,0.18036381]
[1693517465670,0.07522738,216.11,215.79,0.18036381]
[1693517465870,0.07522738,216.12,215.8,0.18036381]
[1693517466072,0.07522738,216.12,215.78,0.18036381]
[1693517466270,0.07522738,216.12,215.79,0.18036381]
[1693517466468,0.07522738,216.12,215.8,0.18036381]
[1693517466668,0.07522738,216.12,215.81,0.18036381]
[1693517466869,0.07522738,216.12,215.82,0.18036381]
[1693517467072,0.07522738,216.12,215.83,0.18036381]
[1693517467372,0.07522738,216.12,215.84,0.18036381]
[1693517467567,0.07522738,216.12,215.85,0.18036381]
[1693517467767,0.07522738,216.12,215.76,0.07588986]
[1693517467967,0.07522738,216.13,215.77,0.18039243]
[1693517469174,0.07522738,216.13,215.78,0.18039243]
[1693517469374,0.07522738,216.13,215.79,0.18039243]
[1693517469574,0.07522738,216.13,215.8,0.18039243]
[1693517469774,0.07522738,216.13,215.76,0.18039243]
[1693517469974,0.07522738,216.13,215.77,0.18039243]
[1693517470176,0.07522738,216.13,215.75,0.07588986]
[1693517470177,0.07522738,216.13,215.76,0.18039243]
[1693517470374,0.07522738,216.13,215.77,0.18039243]
[1693517470573,0.07522738,216.13,215.76,0.18039243]
[1693517470773,0.07522738,216.13,215.77,0.18039243]
[1693517471078,0.07522738,216.13,215.78,0.18039243]
[1693517471274,0.07522738,216.13,215.79,0.18039243]
[1693517471473,0.07522738,216.13,215.8,0.18039243]
[1693517471673,0.07522738,216.13,215.81,0.18039243]
[1693517471874,0.07522738,216.13,215.82,0.18039243]
[1693517472073,0.07522738,216.13,215.75,0.18039243]
[1693517472277,0.07522738,216.13,215.76,0.18039243]
[1693517472479,0.07522738,216.13,215.75,0.18039243]
[1693517472678,0.07522738,216.13,215.76,0.18039243]
[1693517472978,0.07522738,216.13,215.77,0.18039243]
[1693517473279,0.07522738,216.13,215.78,0.18039243]
[1693517473478,0.07522738,216.13,215.79,0.18039243]
[1693517473679,0.07522738,216.13,215.8,0.18039243]
[1693517473875,0.07522738,216.13,215.75,0.18039243]
[1693517474082,0.07522738,216.13,215.76,0.18039243]
[1693517474278,0.07522738,216.13,215.75,0.18039243]
[1693517474583,0.07522738,216.13,215.76,0.18039243]
[1693517474879,0.07522738,216.13,215.77,0.18039243]
[1693517475078,0.07522738,216.13,215.75,0.18039243]
[1693517475281,0.07522738,216.13,215.76,0.18039243]
[1693517475579,0.07522738,216.13,215.77,0.18039243]
[1693517475779,0.07522738,216.13,215.74,0.07588986]
[1693517475780,0.07522738,216.13,215.75,0.18039243]
[1693517476079,0.07522738,216.13,215.76,0.18039243]
[1693517476379,0.07522738,216.13,215.77,0.18039243]
[1693517476572,0.07522738,216.13,215.78,0.18039243]
[1693517476774,0.07522738,216.13,215.79,0.18039243]
[1693517476976,0.07522738,216.13,215.75,0.18039243]
[1693517477174,0.07522738,216.13,215.76,0.18039243]
[1693517477373,0.07522738,216.13,215.77,0.18039243]
[1693517477674,0.07522738,216.13,215.78,0.18039243]
[1693517477878,0.07522738,216.13,215.79,0.18039243]
[1693517478078,0.07522738,216.13,215.75,0.18039243]
[1693517478275,0.07522738,216.13,215.76,0.18039243]
[1693517478479,0.07522738,216.13,215.77,0.18039243]
[1693517478680,0.07522738,216.13,215.78,0.18039243]
[1693517478979,0.07522738,216.13,215.79,0.18039243]
[1693517479182,0.07522738,216.12,215.8,0.18039243]
[1693517479480,0.07522738,216.12,215.81,0.18039243]
[1693517479681,0.07522738,216.12,215.75,0.18039243]
[1693517479873,0.07522738,216.12,215.76,0.18039243]
[1693517480073,0.07522738,216.12,215.77,0.18039243]
[1693517480278,0.07522738,216.12,215.74,0.07588986]
[1693517480279,0.07522738,216.12,215.75,0.18039243]
[1693517480477,0.07522738,216.12,215.76,0.18039243]
[1693517480679,0.07522738,216.12,215.75,0.18039243]
[1693517480876,0.07522738,216.12,215.76,0.18039243]
[1693517481080,0.07522738,216.12,215.77,0.18039243]
[1693517481280,0.07522738,216.12,215.75,0.18039243]
[1693517481481,0.07522738,216.12,215.76,0.18039243]
[1693517481682,0.07522738,216.12,215.75,0.18039243]
[1693517481881,0.07522738,216.12,215.76,0.18039243]
[1693517485183,0.07522738,216.11,215.76,0.18039243]
[1693517486182,0.07522738,216.11,215.76,0.25628229]
[1693517486483,0.07522738,216.11,215.77,0.18039243]
[1693517488382,0.07522738,216.1,215.77,0.25628229]
[1693517488577,0.07522738,216.1,215.78,0.18039243]
[1693517489286,0.07522738,216.09,215.78,0.18039243]
[1693517490887,0.07522738,216.1,215.78,0.25628229]
[1693517491087,0.07522738,216.1,215.79,0.18039243]
[1693517491283,0.07522738,216.09,215.79,0.18039243]
[1693517491685,0.07522738,216.09,215.79,0.25628229]
[1693517491889,0.07522738,216.09,215.8,0.18039243]
[1693517492286,0.50151587,216.14,215.8,0.18039243]
[1693517492287,0.07522738,216.08,215.8,0.18039243]
[1693517493188,0.07522738,216.07,215.8,0.25628229]
[1693517493383,0.07522738,216.07,215.81,0.25628229]
[1693517493687,0.07522738,216.07,215.82,0.18039243]
[1693517494188,0.07522738,216.05,215.83,0.07588986]
[1693517494489,0.07522738,216.05,215.84,0.18039243]
[1693517499194,0.07522738,216.05,215.84,0.25628229]
[1693517499389,0.07522738,216.05,215.85,0.18039243]
[1693517499691,0.07522738,216.06,215.85,0.18039243]
[1693517499894,0.07522738,216.06,215.85,0.25628229]
[1693517500090,0.07522738,216.07,215.86,0.18039243]
[1693517500294,0.07522738,216.08,215.86,0.18039243]
[1693517501488,0.07522738,216.12,215.9,0.07588986]
[1693517501690,0.07522738,216.12,215.67,1.0118648]
[1693517501691,0.07522738,216.14,215.91,0.25628229]
[1693517501890,0.07522738,216.13,215.92,0.18039243]
[1693517502193,0.07522738,216.16,215.92,0.18039243]
[1693517502391,0.07522738,216.16,215.93,0.18039243]
[1693517502588,0.07522738,216.16,215.88,0.07588986]
[1693517502795,0.07522738,216.16,215.89,0.18012356]
[1693517503194,0.07522738,216.18,215.89,0.18012356]
[1693517503394,0.07522738,216.18,215.87,0.18012356]
[1693517503592,0.07522738,216.18,215.88,0.18012356]
[1693517503891,0.07522738,216.19,215.89,0.18012356]
[1693517504096,0.07522738,216.19,215.9,0.18012356]
[1693517504298,0.07522738,216.19,215.86,0.18012356]
[1693517504592,0.07522738,216.19,215.87,0.18012356]
[1693517504791,0.07522738,216.19,215.86,0.18012356]
[1693517504990,0.07522738,216.2,215.87,0.18012356]
[1693517505298,0.07522738,216.2,215.88,0.18012356]
[1693517505501,0.07522738,216.2,215.89,0.18012356]
[1693517505797,0.07522738,216.2,215.9,0.18012356]
[1693517505998,0.07522738,216.21,215.85,0.18012356]
[1693517506199,0.07522738,216.21,215.86,0.18012356]
[1693517506399,0.07522738,216.21,215.87,0.18012356]
[1693517506599,0.07522738,216.21,215.88,0.18012356]
[1693517506901,0.07522738,216.21,215.89,0.18012356]
[1693517507097,0.07522738,216.21,215.84,0.18012356]
[1693517507293,0.07522738,216.21,215.85,0.18012356]
[1693517507600,0.07522738,216.21,215.86,0.18012356]
[1693517507794,0.07522738,216.21,215.84,0.18012356]
[1693517507996,0.07522738,216.22,215.85,0.18012356]
[1693517508192,0.07522738,216.22,215.86,0.18012356]
[1693517508397,0.07522738,216.22,215.87,0.18012356]
[1693517508601,0.07522738,216.22,215.88,0.18012356]
[1693517508798,0.07522738,216.22,215.84,0.18012356]
[1693517508998,0.07522738,216.22,215.85,0.18012356]
[1693517509299,0.07522738,216.22,215.86,0.18012356]
[1693517509598,0.07522738,216.22,215.87,0.18012356]
[1693517509798,0.07522738,216.23,215.83,0.18012356]
[1693517510101,0.07522738,216.23,215.84,0.18012356]
[1693517510401,0.07522738,216.23,215.85,0.18012356]
[1693517510599,0.07522738,216.23,215.83,0.18012356]
[1693517510799,0.07522738,216.23,215.84,0.18012356]
[1693517511100,0.07522738,216.23,215.85,0.18012356]
[1693517511398,0.07522738,216.23,215.86,0.18012356]
[1693517511600,0.07522738,216.23,215.87,0.18012356]
[1693517511799,0.07522738,216.24,215.83,0.18012356]
[1693517512001,0.07522738,216.24,215.84,0.18012356]
[1693517512204,0.07522738,216.24,215.85,0.18012356]
[1693517512394,0.07522738,216.24,215.83,0.18012356]
[1693517512596,0.07522738,216.24,215.84,0.18012356]
[1693517512900,0.07522738,216.24,215.85,0.18012356]
[1693517513100,0.07522738,216.24,215.75,0.15177972]
[1693517513101,0.07522738,216.24,215.86,0.18012356]
[1693517513301,0.07522738,216.24,215.87,0.18012356]
[1693517513497,0.07522738,216.24,215.82,0.18012356]
[1693517514402,0.07522738,216.25,215.82,0.18012356]
[1693517514603,0.07522738,216.24,215.82,0.18012356]
[1693517514802,0.07522738,216.25,215.82,0.18012356]
[1693517520410,0.07522738,216.26,215.82,0.25601342]
[1693517520605,0.07522738,216.26,215.83,0.18012356]
[1693517523309,0.07522738,216.26,215.83,0.25601342]
[1693517523510,0.07522738,216.26,215.84,0.18012356]
[1693517524011,0.07522738,216.25,215.84,0.18012356]
[1693517526908,0.07522738,216.25,215.84,0.25601342]
[1693517527110,0.07522738,216.25,215.85,0.18012356]
[1693517528314,0.07522738,216.24,215.85,0.18012356]
[1693517529814,0.07522738,216.25,215.85,0.18012356]
[1693517530015,0.07522738,216.24,215.85,0.25601342]
[1693517530208,0.07522738,216.24,215.86,0.18012356]
[1693517530408,0.07522738,216.23,215.86,0.18012356]
[1693517530612,0.07522738,216.23,215.85,0.18012356]
[1693517530914,0.07522738,216.23,215.86,0.18012356]
[1693517531114,0.07522738,216.22,215.87,0.18012356]
[1693517531314,0.50151587,216.27,215.85,0.07588986]
[1693517531315,0.07522738,216.23,215.88,0.18012356]
[1693517531515,0.07522738,216.22,215.89,0.18012356]
[1693517531710,0.07522738,216.22,215.86,0.18012356]
[1693517531916,0.07522738,216.22,215.87,0.18012356]
[1693517532120,0.07522738,216.21,215.86,0.25601342]
[1693517532317,0.07522738,216.21,215.87,0.18012356]
[1693517532918,0.07522738,216.2,215.88,0.07588986]
[1693517533118,0.07522738,216.2,215.89,0.18012356]
[1693517533814,0.07522738,216.2,215.9,0.18012356]
[1693517534120,0.07522738,216.2,215.91,0.18012356]
[1693517534121,0.07522738,216.18,215.91,0.18012356]
[1693517534416,0.07522738,216.17,215.92,0.18012356]
[1693517534612,0.07522738,216.17,215.89,0.07588986]
[1693517534613,0.07522738,216.17,215.9,0.18012356]
[1693517534812,0.07522738,216.17,215.89,0.07588986]
[1693517534813,0.07522738,216.17,215.91,0.18012356]
[1693517535016,0.07522738,216.17,215.89,0.07588986]
[1693517535017,0.07522738,216.17,215.92,0.18012356]
[1693517535214,0.07522738,216.15,215.91,0.07588986]
[1693517535422,0.07522738,216.15,215.92,0.18012356]
[1693517536320,0.07522738,216.16,215.92,0.18012356]
[1693517537120,0.07522738,216.15,215.92,0.18012356]
[1693517541220,0.07522738,216.15,215.92,0.25601342]
[1693517541421,0.07522738,216.15,215.93,0.18012356]
[1693517541816,0.07522738,216.15,215.94,0.18012356]
[1693517542022,0.07522738,216.15,215.92,0.07588986]
[1693517542222,0.07522738,216.15,215.93,0.18006849]
[1693517543422,0.07522738,216.15,215.93,0.25595835]
[1693517543623,0.07522738,216.15,215.94,0.18006849]
[1693517544818,0.07522738,216.15,215.92,0.07588986]
[1693517544819,0.07522738,216.15,215.93,0.25595835]
[1693517545019,0.07522738,216.15,215.94,0.18006849]
[1693517546026,0.07522738,216.16,215.94,0.18006849]
[1693517547024,0.07522738,216.16,215.94,0.25595835]
[1693517547219,0.07522738,216.16,215.95,0.18006849]
[1693517547821,0.07522738,216.16,215.94,0.18006849]
[1693517548026,0.07522738,216.16,215.95,0.18004388]
[1693517550027,0.07522738,216.16,215.94,0.25593374]
[1693517550227,0.07522738,216.16,215.95,0.18004388]
[1693517550928,0.07522738,216.16,215.94,0.25593374]
[1693517551224,0.07522738,216.16,215.95,0.18004388]
[1693517554630,0.07522738,216.17,215.95,0.25593374]
[1693517554832,0.07522738,216.17,215.96,0.18004388]
[1693517557231,0.07522738,216.18,215.96,0.18004388]
[1693517558332,0.07522738,216.17,215.96,0.18004388]
[1693517558532,0.07522738,216.18,215.96,0.18004388]
[1693517560429,0.07522738,216.17,215.97,0.18004388]
[1693517560632,0.07522738,216.18,215.95,0.07588986]
[1693517560832,0.07522738,216.18,215.96,0.18002077]
[1693517562531,0.07522738,216.19,215.96,0.18002077]
[1693517562835,0.07522738,216.18,215.96,0.18002077]
[1693517563029,0.07522738,216.19,215.96,0.18002077]
[1693517563835,0.07522738,216.18,215.96,0.18002077]
[1693517564032,0.15045476,216.21,215.96,0.18002077]
[1693517564033,0.07522738,216.19,215.96,0.18002077]
[1693517565433,0.07522738,216.24,216.0,0.07588986]
[1693517565633,0.07522738,216.25,216.01,0.25591063]
[1693517566037,0.15045476,216.27,215.61,2.52966201]
[1693517566038,0.07522738,216.27,216.02,0.18002077]
[1693517566232,0.07522738,216.27,216.03,0.18002077]
[1693517566432,0.07522738,216.27,216.04,0.18002077]
[1693517566634,0.07522738,216.27,215.99,0.07588986]
[1693517566838,0.07522738,216.27,216.0,0.17976337]
[1693517567037,0.07522738,216.28,216.0,0.17976337]
[1693517567232,0.07522738,216.28,215.98,0.07588986]
[1693517567233,0.07522738,216.28,216.01,0.17976337]
[1693517567434,0.07522738,216.28,215.99,0.17976337]
[1693517567638,0.07522738,216.28,216.0,0.17976337]
[1693517567838,0.07522738,216.28,215.98,0.07588986]
[1693517567839,0.07522738,216.28,215.99,0.17976337]
[1693517568938,0.07522738,216.29,215.99,0.17976337]
[1693517569140,0.07522738,216.29,215.97,0.07588986]
[1693517569141,0.07522738,216.29,216.0,0.17976337]
[1693517569342,0.07522738,216.29,215.98,0.17976337]
[1693517569642,0.07522738,216.29,215.99,0.17976337]
[1693517569842,0.07522738,216.29,216.0,0.17976337]
[1693517570037,0.07522738,216.3,215.98,0.17976337]
[1693517570242,0.07522738,216.3,215.99,0.17976337]
[1693517570543,0.07522738,216.3,216.0,0.17976337]
[1693517570742,0.07522738,216.3,215.97,0.17976337]
[1693517570944,0.07522738,216.3,215.98,0.17976337]
[1693517571142,0.07522738,216.3,215.99,0.17976337]
[1693517571338,0.07522738,216.3,216.0,0.17976337]
[1693517571540,0.07522738,216.3,216.01,0.17976337]
[1693517571742,0.07522738,216.3,215.97,0.17976337]
[1693517572044,0.07522738,216.3,215.98,0.17976337]
[1693517572244,0.07522738,216.3,215.99,0.17976337]
[1693517572443,0.07522738,216.3,215.97,0.17976337]
[1693517572744,0.07522738,216.31,215.98,0.17976337]
[1693517573043,0.07522738,216.31,215.99,0.17976337]
[1693517573244,0.07522738,216.31,216.0,0.17976337]
[1693517573444,0.07522738,216.31,216.01,0.17976337]
[1693517573639,0.07522738,216.31,216.02,0.17976337]
[1693517573841,0.07522738,216.31,215.96,0.17976337]
[1693517574037,0.07522738,216.31,215.97,0.17976337]
[1693517574245,0.07522738,216.31,215.96,0.17976337]
[1693517574544,0.07522738,216.31,215.97,0.17976337]
[1693517574738,0.07522738,216.31,215.98,0.17976337]
[1693517574937,0.07522738,216.31,215.99,0.17976337]
[1693517575142,0.07522738,216.32,216.0,0.17976337]
[1693517575342,0.07522738,216.32,216.01,0.17976337]
[1693517575543,0.07522738,216.32,215.96,0.17976337]
[1693517575743,0.07522738,216.32,215.97,0.17976337]
[1693517576044,0.07522738,216.32,215.98,0.17976337]
[1693517576245,0.07522738,216.32,215.96,0.17976337]
[1693517576544,0.07522738,216.32,215.97,0.17976337]
[1693517576744,0.07522738,216.32,215.98,0.17976337]
[1693517576945,0.07522738,216.32,215.96,0.17976337]
[1693517577245,0.07522738,216.32,215.97,0.17976337]
[1693517577439,0.07522738,216.32,215.98,0.17976337]
[1693517577641,0.07522738,216.32,215.95,0.17976337]
[1693517577840,0.07522738,216.32,215.96,0.17976337]
[1693517578145,0.07522738,216.32,215.95,0.17976337]
[1693517578347,0.07522738,216.32,215.96,0.17976337]
[1693517578546,0.07522738,216.32,215.97,0.17976337]
[1693517578747,0.07522738,216.32,215.98,0.17976337]
[1693517579047,0.07522738,216.33,215.99,0.17976337]
[1693517579248,0.07522738,216.32,216.0,0.17976337]
[1693517579448,0.07522738,216.32,216.01,0.17976337]
[1693517579641,0.07522738,216.32,216.02,0.17976337]
[1693517579846,0.07522738,216.33,215.95,0.17976337]
[1693517580042,0.07522738,216.33,215.96,0.17976337]
[1693517580252,0.07522738,216.33,215.95,0.17976337]
[1693517580543,0.07522738,216.33,215.96,0.17976337]
[1693517580846,0.07522738,216.33,215.97,0.17976337]
[1693517581043,0.07522738,216.33,215.98,0.17976337]
[1693517581242,0.07522738,216.33,215.99,0.17976337]
[1693517581443,0.07522738,216.33,216.0,0.17976337]
[1693517581648,0.07522738,216.33,216.01,0.17976337]
[1693517581849,0.07522738,216.33,216.02,0.17976337]
[1693517582045,0.07522738,216.33,215.95,0.17976337]
[1693517582249,0.07522738,216.33,215.96,0.17976337]
[1693517582452,0.07522738,216.33,215.97,0.17976337]
[1693517582651,0.07522738,216.33,215.98,0.17976337]
[1693517582951,0.07522738,216.33,215.99,0.17976337]
[1693517583152,0.07522738,216.33,216.0,0.17976337]
[1693517583348,0.07522738,216.33,216.01,0.17976337]
[1693517583549,0.07522738,216.33,216.02,0.17976337]
[1693517583752,0.07522738,216.33,216.03,0.17976337]
[1693517583951,0.07522738,216.33,216.04,0.17976337]
[1693517584155,0.07522738,216.33,215.94,0.07588986]
[1693517584450,0.07522738,216.33,215.95,0.17975078]
[1693517584651,0.07522738,216.33,215.94,0.17975078]
[1693517584856,0.07522738,216.31,215.95,0.17975078]
[1693517585054,0.07522738,216.31,215.92,0.07588986]
[1693517585055,0.07522738,216.31,215.93,0.17975078]
[1693517585254,0.07522738,216.31,215.94,0.17975078]
[1693517585454,0.07522738,216.31,215.93,0.17975078]
[1693517585649,0.07522738,216.31,215.94,0.17975078]
[1693517585853,0.07522738,216.31,215.93,0.17975078]
[1693517586051,0.07522738,216.31,215.94,0.17975078]
[1693517586249,0.07522738,216.31,215.95,0.17975078]
[1693517586455,0.07522738,216.31,215.96,0.17975078]
[1693517586650,0.07522738,216.31,215.97,0.17975078]
[1693517586856,0.07522738,216.31,215.98,0.17975078]
[1693517587160,0.07522738,216.31,215.99,0.17975078]
[1693517587356,0.07522738,216.31,215.93,0.25564064]
[1693517587557,0.07522738,216.31,215.94,0.17975078]
[1693517589760,0.07522738,216.31,215.94,0.25564064]
[1693517589957,0.07522738,216.31,215.95,0.17975078]
[1693517590162,0.07522738,216.31,215.94,0.25564064]
[1693517590361,0.07522738,216.31,215.95,0.17975078]
[1693517594768,0.07522738,216.29,215.96,0.17975078]
[1693517595068,0.07522738,216.29,215.96,0.25564064]
[1693517595265,0.07522738,216.29,215.97,0.17975078]
[1693517596061,0.07522738,216.28,215.97,0.17975078]
[1693517596266,0.07522738,216.28,215.97,0.25564064]
[1693517596463,0.07522738,216.28,215.98,0.17975078]
[1693517596863,0.07522738,216.28,215.99,0.17975078]
[1693517597063,0.07522738,216.28,215.98,0.17975078]
[1693517597370,0.07522738,216.27,215.99,0.17975078]
[1693517597668,0.07522738,216.27,216.0,0.17975078]
[1693517597869,0.07522738,216.27,215.98,0.17975078]
[1693517598066,0.07522738,216.27,215.99,0.17975078]
[1693517599068,0.07522738,216.26,216.0,0.07588986]
[1693517599262,0.07522738,216.26,216.01,0.17975078]
[1693517599862,0.07522738,216.23,216.02,0.07588986]
[1693517600062,0.07522738,216.23,216.03,0.17975078]
[1693517602766,0.07522738,216.24,216.03,0.17975078]
[1693517603264,0.07522738,216.23,216.03,0.17975078]
[1693517603869,0.07522738,216.18,215.97,0.07588986]
[1693517604068,0.07522738,216.18,215.98,0.17999354]
[1693517604271,0.07522738,216.2,215.95,0.07588986]
[1693517604469,0.07522738,216.2,215.96,0.18000409]
[1693517604771,0.07522738,216.2,215.97,0.18000409]
[1693517604972,0.07522738,216.2,215.98,0.18000409]
[1693517605172,0.07522738,216.2,215.95,0.18000409]
[1693517605472,0.07522738,216.21,215.96,0.17998956]
[1693517605672,0.07522738,216.21,215.94,0.25587942]
[1693517605871,0.07522738,216.21,215.95,0.17998956]
[1693517606374,0.07522738,216.22,215.95,0.17998956]
[1693517606571,0.07522738,216.22,215.96,0.17998956]
[1693517606765,0.07522738,216.22,215.94,0.17998956]
[1693517606967,0.07522738,216.22,215.95,0.17998956]
[1693517607166,0.07522738,216.22,215.96,0.17998956]
[1693517607369,0.07522738,216.22,215.93,0.17998956]
[1693517607567,0.07522738,216.22,215.94,0.17998956]
[1693517607772,0.07522738,216.22,215.93,0.17998956]
[1693517607971,0.07522738,216.22,215.94,0.17998956]
[1693517608173,0.07522738,216.23,215.93,0.17998956]
[1693517608369,0.07522738,216.23,215.94,0.17998956]
[1693517608571,0.07522738,216.23,215.95,0.17998956]
[1693517608775,0.07522738,216.23,215.93,0.17998956]
[1693517609674,0.07522738,216.23,215.94,0.17998956]
[1693517609870,0.07522738,216.23,215.92,0.17998956]
[1693517610077,0.07522738,216.23,215.93,0.17998956]
[1693517610277,0.07522738,216.23,215.94,0.17998956]
[1693517610471,0.07522738,216.23,215.91,0.07588986]
[1693517610472,0.07522738,216.23,215.92,0.17998956]
[1693517610777,0.07522738,216.23,215.93,0.17998956]
[1693517611078,0.07522738,216.23,215.94,0.17998956]
[1693517611276,0.07522738,216.23,215.95,0.17998956]
[1693517611475,0.07522738,216.23,215.96,0.17998956]
[1693517611776,0.07522738,216.23,215.97,0.17998956]
[1693517611977,0.07522738,216.23,215.98,0.17998956]
[1693517612178,0.07522738,216.23,215.92,0.17998956]
[1693517612371,0.07522738,216.23,215.93,0.17998894]
[1693517612572,0.07522738,216.23,215.94,0.17998894]
[1693517612772,0.07522738,216.23,215.95,0.17998894]
[1693517612970,0.07522738,216.23,215.92,0.17998894]
[1693517613171,0.07522738,216.24,215.93,0.17998894]
[1693517613378,0.07522738,216.24,215.94,0.17998894]
[1693517613578,0.07522738,216.24,215.95,0.17998894]
[1693517613778,0.07522738,216.24,215.92,0.17998894]
[1693517614074,0.07522738,216.24,215.93,0.17998894]
[1693517614275,0.07522738,216.24,215.94,0.17998894]
[1693517614580,0.07522738,216.24,215.95,0.17998894]
[1693517614779,0.07522738,216.24,215.96,0.17998894]
[1693517614980,0.07522738,216.23,215.97,0.17998894]
[1693517615279,0.07522738,216.23,215.9,0.07588986]
[1693517615480,0.07522738,216.23,215.91,0.18001292]
[1693517616277,0.07522738,216.24,215.91,0.18001292]
[1693517618980,0.07522738,216.23,215.91,0.18001292]
[1693517619180,0.07522738,216.23,215.9,0.18001292]
[1693517619482,0.07522738,216.23,215.91,0.18001292]
[1693517619682,0.07522738,216.23,215.92,0.18001292]
[1693517619876,0.07522738,216.23,215.93,0.18001292]